bitfinex/quotes_ETHUSD_20251117
["timestamp","ask_amount","ask_price","bid_price","bid_amount"]
[1763350324763,0.49,3178.9,3178.8,8.45104234]
[1763350325679,1.1634,3178.9,3178.8,4.16553834]
[1763350326323,0.002,3179.1,3178.8,4.63743834]
[1763350326530,0.002,3179.1,3179.0,4.16553834]
[1763350328867,0.492,3179.1,3179.0,4.16553834]
[1763350329844,0.002,3179.1,3179.0,4.16553834]
[1763350330045,0.002,3179.1,3179.0,4.63743834]
[1763350330238,0.492,3179.1,3179.0,4.57104234]
[1763350330527,0.002,3179.1,3179.0,4.57104234]
[1763350331338,0.002,3179.1,3179.0,5.04294234]
[1763350331685,0.9721,3179.1,3178.8,0.405504]
[1763350331849,0.4696,3178.9,3178.8,0.405504]
[1763350332372,0.9497,3178.9,3178.8,0.405504]
[1763350335430,0.9497,3178.9,3178.8,4.285504]
[1763350336671,0.9497,3178.9,3178.6,0.001]
[1763350336973,0.4931,3178.7,3178.6,0.001]
[1763350337467,0.9515,3178.7,3178.6,0.001]
[1763350343710,1.24622812,3178.7,3178.6,0.001]
[1763350344010,1.24622812,3178.7,3178.0,0.001]
[1763350344011,0.2948,3178.4,3178.0,0.001]
[1763350344182,0.4729,3178.1,3178.0,0.001]
[1763350344583,0.9497,3178.1,3178.0,0.001]
[1763350346519,0.9497,3178.1,3178.0,4.16653834]
[1763350346728,0.4729,3178.1,3178.0,4.16653834]
[1763350347074,0.9497,3178.1,3178.0,0.001]
[1763350354999,0.4729,3178.1,3178.0,0.001]
[1763350355204,0.9497,3178.1,3178.0,0.001]
[1763350356440,0.4729,3178.1,3178.0,0.001]
[1763350356637,0.4768,3178.6,3178.0,0.4937]
[1763350356947,0.49394236,3178.5,3178.0,0.4937]
[1763350357126,0.4768,3178.6,3178.1,4.16553834]
[1763350357437,0.4768,3178.5,3178.1,4.16553834]
[1763350357738,0.4875,3178.2,3178.1,4.16553834]
[1763350359544,0.4768,3178.5,3178.1,4.16553834]
[1763350361022,0.4875,3178.2,3178.0,0.001]
[1763350361426,0.4768,3178.5,3178.0,0.001]
[1763350363373,0.4768,3178.5,3178.1,4.16553834]
[1763350363869,0.49393976,3178.6,3178.0,0.001]
[1763350364075,0.4768,3178.5,3178.0,0.001]
[1763350365781,0.4875,3178.1,3178.0,0.001]
[1763350366550,0.97073976,3178.6,3178.0,0.4937]
[1763350366748,0.4768,3178.5,3178.0,0.4937]
[1763350368879,0.4768,3178.5,3178.0,0.001]
[1763350369375,0.49393976,3178.6,3178.4,4.65823834]
[1763350369537,0.002,3178.7,3178.5,0.898204]
[1763350369739,0.002,3178.7,3178.6,0.898204]
[1763350371480,0.002,3178.7,3178.6,1.357604]
[1763350372345,0.002,3178.7,3178.6,5.06374234]
[1763350372550,0.002,3178.7,3178.6,5.52314234]
[1763350372752,0.002,3178.7,3178.6,5.06374234]
[1763350373048,0.002,3178.7,3178.6,5.52314234]
[1763350375387,0.002,3178.7,3178.6,5.06374234]
[1763350376486,0.4976,3178.7,3178.6,4.16553834]
[1763350376848,0.4976,3178.7,3178.6,4.8514273]
[1763350376849,0.002,3178.7,3178.6,4.8514273]
[1763350379367,0.002,3178.7,3178.6,8.7314273]
[1763350380707,0.002,3178.7,3178.6,9.1369313]
[1763350380867,0.002,3179.1,3178.7,0.405504]
[1763350381066,0.002,3179.1,3179.0,5.9312721]
[1763350381295,0.9655,3179.1,3178.6,1.11214981]
[1763350381468,0.9655,3179.1,3178.4,5.16587846]
[1763350381668,0.002,3179.1,3179.0,4.3920273]
[1763350381872,0.002,3179.1,3179.0,5.9312721]
[1763350382091,0.002,3179.1,3179.0,6.3906721]
[1763350382405,0.002,3179.1,3179.0,6.51675344]
[1763350388022,0.002,3179.1,3179.0,8.33563744]
[1763350388229,0.002,3179.4,3179.2,0.721404]
[1763350388410,0.002,3179.4,3179.2,1.327404]
[1763350388736,0.002,3179.4,3179.2,1.786804]
[1763350389500,0.002,3179.4,3179.2,2.17763819]
[1763350389804,0.002,3179.4,3179.3,1.93007899]
[1763350390005,0.002,3179.4,3179.3,8.44511338]
[1763350391234,0.002,3180.0,3179.3,8.44511338]
[1763350391431,0.002,3180.0,3179.7,5.4452721]
[1763350391626,0.002,3180.0,3179.7,5.9312721]
[1763350391828,0.002,3180.0,3179.7,6.3906721]
[1763350392024,0.002,3180.0,3179.7,6.51670061]
[1763350393260,0.002,3180.0,3179.7,10.39670061]
[1763350393458,0.002,3180.5,3179.7,10.39670061]
[1763350393459,0.002,3180.5,3179.9,0.891504]
[1763350393658,0.002,3180.7,3180.5,0.405504]
[1763350393843,0.002,3180.7,3180.6,5.9312721]
[1763350394042,0.002,3180.7,3180.6,6.0572744]
[1763350394244,0.002,3180.7,3180.6,6.5166744]
[1763350395035,0.002,3180.7,3180.6,6.0572744]
[1763350395656,0.002,3180.7,3180.6,6.5166744]
[1763350399962,0.002,3180.9,3180.7,1.5392448]
[1763350400140,0.4958,3180.8,3180.7,1.5392448]
[1763350400340,0.4958,3180.8,3180.0,1.39261565]
[1763350400341,0.4958,3180.8,3179.9,4.3592]
[1763350400639,0.2607,3180.7,3180.4,0.4958]
[1763350400837,0.002,3180.8,3180.6,1.1337408]
[1763350401273,0.002,3180.8,3180.7,0.405504]
[1763350401560,0.002,3180.8,3180.7,4.3115313]
[1763350401741,0.4979,3180.8,3180.7,5.4452721]
[1763350401936,0.9559,3180.8,3180.7,5.4452721]
[1763350402159,0.4979,3180.8,3180.7,5.4452721]
[1763350402947,0.9559,3180.8,3180.7,8.9197681]
[1763350403153,0.9559,3180.8,3180.3,3.88]
[1763350403340,0.9559,3180.8,3179.8,0.3159]
[1763350403341,0.2749,3180.3,3179.8,4.2219273]
[1763350403535,0.458,3180.7,3179.9,1.1337408]
[1763350403784,0.4959,3180.0,3179.6,1.1337408]
[1763350403972,0.458,3180.6,3179.5,3.9060273]
[1763350403973,0.6785,3179.7,3179.5,3.9060273]
[1763350404168,0.2865,3179.6,3179.5,5.0397681]
[1763350404589,0.2865,3179.6,3179.5,5.4452721]
[1763350404800,0.1849,3179.9,3179.6,0.405504]
[1763350404943,0.4959,3179.6,3179.2,4.0260273]
[1763350405145,0.4959,3179.6,3179.4,0.405504]
[1763350405759,0.1849,3179.9,3179.6,1.5392448]
[1763350405965,0.002,3180.8,3179.6,1.5392448]
[1763350405966,0.46,3180.8,3179.9,0.405504]
[1763350406285,0.46,3180.8,3180.3,0.405504]
[1763350406479,0.4959,3180.4,3180.3,0.405504]
[1763350407181,0.002,3180.8,3180.3,2.0054448]
[1763350407480,0.46,3180.8,3180.6,0.405504]
[1763350407895,0.002,3180.8,3180.6,0.405504]
[1763350408262,0.4959,3180.7,3180.6,0.405504]
[1763350408872,0.4959,3180.7,3180.3,0.405504]
[1763350409074,0.458,3180.6,3179.8,0.4959]
[1763350409281,0.458,3180.6,3180.0,1.1337408]
[1763350411790,0.4959,3180.1,3179.6,3.88]
[1763350412097,0.7423,3180.0,3179.6,3.88]
[1763350412298,0.4937,3179.7,3179.5,1.5402448]
[1763350412501,0.002,3180.8,3179.5,5.0147408]
[1763350412802,0.458,3180.7,3179.6,0.4662]
[1763350413096,0.458,3180.7,3179.7,0.405504]
[1763350413594,0.4959,3179.8,3179.6,0.405504]
[1763350414871,0.1849,3179.9,3179.6,0.405504]
[1763350415500,0.6429,3179.9,3179.6,0.405504]
[1763350415701,0.4959,3179.7,3179.6,0.405504]
[1763350415902,0.4959,3179.7,3179.5,0.001]
[1763350416097,0.2843,3179.6,3179.5,0.001]
[1763350416512,0.1849,3179.9,3179.6,0.405504]
[1763350417033,0.1849,3179.9,3179.5,0.001]
[1763350417633,0.458,3180.3,3179.5,0.001]
[1763350418027,0.49367865,3180.6,3179.7,0.405504]
[1763350418028,0.458,3180.6,3179.7,0.405504]
[1763350418339,0.1869,3180.8,3180.2,1.5392448]
[1763350419037,0.1869,3180.8,3180.4,0.405504]
[1763350419337,0.6449,3180.8,3180.4,0.405504]
[1763350419903,0.4959,3180.5,3180.4,0.405504]
[1763350420103,0.4959,3180.5,3179.9,0.405504]
[1763350420298,0.2843,3180.4,3179.9,0.901404]
[1763350420726,0.7423,3180.4,3179.9,0.901404]
[1763350423175,0.1869,3180.8,3180.3,0.4662]
[1763350423342,0.458,3180.7,3180.4,3.88]
[1763350423751,0.4959,3180.5,3180.4,3.88]
[1763350424064,0.458,3180.7,3180.4,3.88]
[1763350424358,0.1869,3180.8,3180.5,0.405504]
[1763350424577,0.002,3180.8,3180.5,0.405504]
[1763350424866,0.002,3180.8,3180.7,1.5392448]
[1763350425027,0.002,3180.8,3180.7,1.8551448]
[1763350425227,0.002,3180.8,3180.7,1.5392448]
[1763350425664,0.002,3180.8,3180.7,2.0054448]
[1763350426066,0.002,3180.8,3180.7,1.330204]
[1763350426444,0.002,3180.8,3180.7,1.646104]
[1763350428562,0.002,3180.8,3180.7,1.77210154]
[1763350430177,0.002,3180.8,3180.7,1.45620154]
[1763350431570,0.002,3181.0,3180.9,0.405504]
[1763350431756,0.002,3181.0,3180.9,7.9717139]
[1763350431958,0.1925,3182.2,3181.1,0.405504]
[1763350432290,0.1925,3181.9,3181.3,7.4954139]
[1763350432785,0.4682,3182.1,3181.3,8.1642139]
[1763350433345,0.1925,3181.9,3181.3,8.1642139]
[1763350433549,0.1925,3181.9,3181.3,9.26800234]
[1763350434970,0.1925,3181.9,3181.3,8.79170234]
[1763350434971,0.6607,3181.9,3181.3,8.79170234]
[1763350435557,0.6607,3181.9,3181.3,6.5541731]
[1763350435746,0.6607,3181.9,3181.3,5.8631731]
[1763350435946,0.4682,3181.7,3181.3,5.8631731]
[1763350436148,0.4682,3181.7,3181.3,6.9969139]
[1763350436745,0.4682,3181.7,3181.3,6.80951133]
[1763350437778,10.18,3184.0,3181.3,6.80951133]
[1763350437779,0.1849,3184.3,3181.9,0.05]
[1763350437966,0.1925,3182.9,3182.7,0.405504]
[1763350438305,0.4938,3182.8,3182.7,0.405504]
[1763350438698,0.962,3182.8,3182.7,0.405504]
[1763350439412,0.962,3182.8,3182.2,5.27026653]
[1763350439568,0.4663,3182.7,3182.4,0.405504]
[1763350440060,0.4938,3182.5,3181.7,0.405504]
[1763350440266,0.75,3182.4,3181.9,1.5392448]
[1763350440503,0.75,3182.4,3181.9,1.1337408]
[1763350440504,0.4682,3182.4,3181.9,1.1337408]
[1763350440707,0.4725,3181.8,3181.7,0.28724548]
[1763350440888,0.4938,3181.8,3181.7,0.28724548]
[1763350441098,0.4938,3181.8,3181.5,1.1337408]
[1763350441099,0.962,3181.8,3181.5,1.1337408]
[1763350441300,0.962,3181.8,3181.6,0.405504]
[1763350441301,0.4682,3181.8,3181.6,0.405504]
[1763350441510,0.1925,3182.9,3181.7,0.4985]
[1763350441704,0.6607,3182.9,3182.3,0.405504]
[1763350442199,0.4938,3182.4,3182.0,0.405504]
[1763350442500,0.4938,3182.1,3182.0,0.405504]
[1763350443020,0.1925,3182.9,3182.2,0.405504]
[1763350443172,0.4938,3182.3,3182.2,0.405504]
[1763350443774,0.962,3182.3,3182.2,0.405504]
[1763350446006,0.962,3182.3,3181.9,3.88]
[1763350446212,0.002,3182.5,3181.5,1.1337408]
[1763350446213,0.7482,3182.2,3181.5,1.1337408]
[1763350446454,0.4916,3181.5,3181.4,0.3151]
[1763350446575,0.6841,3181.5,3181.4,0.3151]
[1763350446911,0.6841,3181.5,3180.5,1.6525917]
[1763350446912,1.1523,3181.5,3180.6,0.001]
[1763350447125,0.4938,3180.7,3180.6,0.001]
[1763350447281,0.4682,3181.4,3180.6,0.001]
[1763350447476,0.4682,3181.3,3180.6,0.001]
[1763350447675,0.4938,3180.7,3180.6,0.001]
[1763350448278,0.4938,3180.7,3180.6,0.406504]
[1763350448576,0.4938,3180.7,3180.6,0.001]
[1763350449017,0.4938,3180.7,3180.6,0.406504]
[1763350449389,0.1925,3181.5,3180.6,1.381304]
[1763350449588,0.4682,3181.4,3181.1,1.5392448]
[1763350450076,0.4938,3181.2,3181.1,1.5392448]
[1763350450477,0.962,3181.2,3181.1,1.5392448]
[1763350450680,0.1925,3181.5,3181.1,2.0377448]
[1763350450879,0.1925,3181.5,3181.1,1.5392448]
[1763350451080,0.4682,3181.4,3181.1,1.5392448]
[1763350451599,0.4938,3181.2,3181.1,1.5392448]
[1763350452385,0.4938,3181.2,3180.6,1.1027278]
[1763350452386,0.962,3181.2,3180.6,1.1027278]
[1763350452606,0.6863,3180.7,3180.6,0.001]
[1763350453019,1.1545,3180.7,3180.6,0.001]
[1763350453229,0.6863,3180.7,3180.6,0.001]
[1763350453591,1.1545,3180.7,3180.6,0.001]
[1763350454243,0.1925,3181.5,3180.7,0.405504]
[1763350454381,0.4682,3181.3,3181.0,1.5392448]
[1763350454581,0.4938,3181.1,3181.0,1.5392448]
[1763350454990,0.962,3181.1,3180.6,0.406504]
[1763350455201,0.6863,3180.7,3180.6,0.406504]
[1763350455521,0.6863,3180.7,3180.6,0.001]
[1763350455818,1.1545,3180.7,3180.6,0.001]
[1763350457032,0.654,3181.5,3180.7,1.5392448]
[1763350457510,0.4615,3181.4,3180.7,1.5392448]
[1763350458897,0.4615,3181.4,3181.1,0.405504]
[1763350459328,0.4629,3181.2,3181.1,0.405504]
[1763350460255,0.4629,3181.2,3181.1,1.5392448]
[1763350460840,0.1925,3181.5,3181.1,2.0369448]
[1763350462053,0.6795,3181.8,3181.1,2.1846448]
[1763350462206,0.1842,3181.8,3181.1,1.5392448]
[1763350462407,0.4953,3181.7,3181.1,1.5392448]
[1763350465722,0.4595,3181.2,3181.1,1.5392448]
[1763350465927,0.4595,3181.2,3181.1,5.4192448]
[1763350466637,0.9548,3181.2,3181.1,5.4192448]
[1763350467427,0.9548,3181.2,3181.1,4.285504]
[1763350467952,0.9548,3181.2,3180.6,0.001]
[1763350468246,0.6437,3180.7,3180.6,0.001]
[1763350468662,1.139,3180.7,3180.6,0.001]
[1763350468843,0.4595,3180.7,3180.6,0.001]
[1763350469155,0.4953,3181.2,3180.7,0.405504]
[1763350469352,0.4595,3180.8,3180.7,0.405504]
[1763350469558,0.4595,3180.8,3180.6,0.001]
[1763350469559,0.9548,3180.8,3180.6,0.001]
[1763350469866,0.2959,3180.7,3180.6,0.001]
[1763350470372,0.2959,3180.7,3180.6,0.406504]
[1763350471028,0.7912,3180.7,3180.6,0.406504]
[1763350471559,0.4953,3181.2,3180.6,0.881204]
[1763350472062,0.4953,3181.2,3180.6,0.406504]
[1763350473276,0.1842,3181.8,3180.9,1.5392448]
[1763350473432,0.4953,3181.6,3180.9,1.5392448]
[1763350473630,0.4953,3181.6,3181.3,0.405504]
[1763350474030,0.4595,3181.4,3181.3,0.405504]
[1763350474441,0.9548,3181.4,3181.3,0.405504]
[1763350474771,0.4595,3181.4,3181.3,0.405504]
[1763350474940,0.9548,3181.4,3181.3,0.405504]
[1763350475148,0.9548,3181.4,3180.9,1.5392448]
[1763350475464,0.4953,3181.3,3180.9,2.6409726]
[1763350476567,0.4953,3181.3,3181.1,0.405504]
[1763350476945,0.4595,3181.2,3181.1,0.405504]
[1763350477946,0.9548,3181.2,3181.1,0.405504]
[1763350480570,0.9548,3181.2,3180.9,2.2364686]
[1763350480739,0.2959,3181.0,3180.9,2.2364686]
[1763350480940,0.2959,3181.0,3180.9,1.1027278]
[1763350481140,0.7912,3181.0,3180.9,0.001]
[1763350484038,0.2959,3181.0,3180.9,0.001]
[1763350484239,0.98880647,3181.6,3180.9,0.881204]
[1763350484541,0.4595,3181.0,3180.9,1.5082318]
[1763350484759,0.4595,3181.0,3180.9,0.406504]
[1763350485668,0.9548,3181.0,3180.9,0.406504]
[1763350486200,0.9548,3181.0,3180.9,0.001]
[1763350489302,0.4953,3181.3,3180.9,0.001]
[1763350489466,0.4953,3181.6,3180.9,0.4757]
[1763350493320,0.4798,3181.0,3180.9,0.406504]
[1763350493487,0.4551,3181.5,3180.9,2.0207448]
[1763350493671,0.002,3181.7,3180.9,2.0207448]
[1763350493672,0.4798,3181.0,3180.9,1.5402448]
[1763350496003,0.4798,3181.0,3180.9,0.406504]
[1763350496202,0.9349,3181.0,3180.9,0.406504]
[1763350496408,0.9349,3181.0,3180.9,0.001]
[1763350497015,0.4551,3181.4,3180.9,0.001]
[1763350500413,0.4551,3181.4,3180.9,0.406504]
[1763350500626,0.4551,3181.4,3180.9,0.001]
[1763350500826,0.002,3181.7,3180.9,0.406504]
[1763350500986,0.29689437,3181.7,3180.9,0.406504]
[1763350501187,0.4551,3181.6,3180.9,0.406504]
[1763350501415,0.4551,3181.6,3181.4,3.90068487]
[1763350501917,0.4798,3181.5,3181.4,3.90068487]
[1763350502286,0.9349,3181.5,3181.4,7.78068487]
[1763350502486,0.4798,3181.5,3181.4,7.78068487]
[1763350502727,0.9349,3181.5,3181.4,3.88]
[1763350503325,0.4798,3181.5,3181.4,7.78068487]
[1763350503615,0.002,3181.7,3181.4,4.38118487]
[1763350503815,0.002,3181.7,3181.5,3.88]
[1763350504387,0.4798,3181.6,3181.5,3.88]
[1763350508392,0.9349,3181.6,3181.5,3.88]
[1763350509919,0.002,3181.7,3181.5,3.88]
[1763350510624,0.002,3182.1,3181.7,0.405504]
[1763350510924,0.002,3182.1,3182.0,4.38118487]
[1763350511324,0.002,3182.1,3182.0,4.78668887]
[1763350511527,0.002,3182.1,3182.0,5.24418887]
[1763350512652,0.002,3182.7,3182.1,0.405504]
[1763350512932,0.002,3182.7,3182.2,1.7492408]
[1763350513439,0.002,3182.7,3182.2,2.2067408]
[1763350514925,0.002,3182.7,3182.2,7.6051311]
[1763350515131,0.4571,3182.7,3182.2,7.6051311]
[1763350515694,0.4571,3182.7,3182.2,7.0646271]
[1763350515927,0.4818,3182.3,3182.2,6.5841271]
[1763350516308,0.9369,3182.3,3181.9,1.1337408]
[1763350516641,0.9369,3182.3,3181.9,0.405504]
[1763350517018,0.9369,3182.3,3181.9,1.5392448]
[1763350517328,0.4818,3182.3,3181.9,1.5392448]
[1763350517629,0.002,3182.3,3181.8,1.5392448]
[1763350517829,0.002,3182.3,3182.1,5.4503863]
[1763350519440,0.002,3182.3,3182.2,1.336604]
[1763350520399,0.002,3182.3,3182.2,1.185304]
[1763350520644,0.002,3182.3,3182.2,0.870204]
[1763350521763,0.4703,3182.3,3182.2,0.405504]
[1763350521966,0.002,3182.3,3182.2,0.4873]
[1763350522162,0.002,3182.3,3181.8,0.864204]
[1763350522163,0.4703,3182.3,3181.8,0.405504]
[1763350522465,0.3075,3182.1,3181.9,1.1337408]
[1763350522760,0.002,3182.3,3182.2,0.4873]
[1763350522969,0.002,3182.3,3182.2,7.4769311]
[1763350523150,0.002,3182.3,3182.2,11.8156311]
[1763350523526,0.002,3182.3,3182.2,11.3569311]
[1763350524869,0.002,3182.3,3182.2,11.8156311]
[1763350525075,0.002,3182.3,3182.2,11.3569311]
[1763350526159,0.002,3182.3,3182.2,7.4769311]
[1763350526324,0.002,3182.3,3182.2,6.9896311]
[1763350526528,0.4703,3182.3,3182.2,6.9896311]
[1763350526934,0.4703,3182.3,3182.2,1.5392448]
[1763350526935,0.933,3182.3,3182.2,1.5392448]
[1763350527171,0.933,3182.3,3182.0,3.88]
[1763350527357,0.3075,3182.1,3181.5,1.1071954]
[1763350527559,0.4683,3181.6,3181.3,5.4503863]
[1763350527751,0.4683,3181.6,3181.4,1.1337408]
[1763350528068,0.002,3182.3,3181.4,1.1337408]
[1763350528069,0.4627,3181.8,3181.4,1.1337408]
[1763350528369,0.4627,3182.2,3181.5,0.405504]
[1763350528558,0.1909,3181.9,3181.5,0.405504]
[1763350528957,0.4627,3181.8,3181.5,0.405504]
[1763350529163,0.4683,3181.6,3181.5,0.405504]
[1763350529847,0.931,3181.6,3181.4,0.405504]
[1763350530048,0.3079,3181.5,3181.3,5.4503863]
[1763350530370,0.4667,3181.4,3181.3,5.8558903]
[1763350530735,0.9294,3181.4,3181.3,5.8558903]
[1763350531165,0.9294,3181.4,3181.3,0.405504]
[1763350533552,0.9294,3181.4,3181.1,1.1337408]
[1763350533753,0.3095,3181.2,3181.0,0.001]
[1763350533961,0.4651,3181.1,3181.0,0.001]
[1763350534163,0.1909,3181.9,3180.7,0.001]
[1763350534164,0.4683,3181.0,3180.7,0.001]
[1763350534387,0.6544,3180.8,3180.7,0.001]
[1763350534687,1.1171,3180.8,3180.6,0.001]
[1763350534986,0.7657,3180.7,3180.6,0.001]
[1763350535418,0.4619,3180.6,3180.2,0.001]
[1763350535595,0.3046,3180.4,3180.2,0.001]
[1763350535795,0.4603,3180.3,3180.0,0.001]
[1763350535968,0.3062,3180.1,3180.0,0.001]
[1763350536294,0.7689,3180.1,3180.0,0.001]
[1763350538605,0.1909,3180.8,3178.0,0.001]
[1763350538606,0.1909,3179.6,3178.0,0.001]
[1763350538805,0.4683,3178.3,3178.0,0.001]
[1763350539108,0.1909,3178.6,3177.4,0.001]
[1763350539109,0.295,3178.1,3177.4,0.001]
[1763350539299,0.6575,3177.7,3177.4,0.001]
[1763350539774,1.1202,3177.7,3177.4,0.001]
[1763350540171,0.6575,3177.7,3177.4,0.001]
[1763350540871,0.1909,3178.1,3177.4,0.001]
[1763350541218,0.4683,3177.7,3177.4,0.001]
[1763350542066,0.931,3177.7,3177.4,0.001]
[1763350544574,0.1909,3178.1,3177.4,0.001]
[1763350544773,0.4627,3178.0,3177.4,0.001]
[1763350544971,0.4627,3178.0,3177.5,5.33309111]
[1763350545177,0.4683,3177.7,3177.5,5.33309111]
[1763350546600,0.4683,3177.7,3177.4,0.001]
[1763350547034,1.42510973,3177.7,3177.4,0.001]
[1763350548388,1.42510973,3177.7,3177.5,0.001]
[1763350552313,0.96240973,3177.7,3177.5,0.001]
[1763350553250,0.49410973,3177.7,3177.6,0.4523]
[1763350555730,0.49410973,3177.7,3177.6,0.9371]
[1763350555932,0.1909,3178.6,3177.6,0.9371]
[1763350556132,0.49415294,3178.1,3177.6,0.9371]
[1763350556426,0.4869,3178.5,3177.6,0.4523]
[1763350556627,0.4869,3178.5,3177.6,0.001]
[1763350559419,0.49414876,3178.3,3177.6,0.001]
[1763350559999,0.4869,3178.5,3177.6,0.001]
[1763350561829,0.4869,3178.5,3177.8,5.20334151]
[1763350563254,0.49412259,3178.4,3177.6,3.881]
[1763350563706,0.49412259,3178.4,3177.6,4.3658]
[1763350564037,0.98102259,3178.4,3177.6,4.3658]
[1763350564632,0.49412259,3178.4,3177.6,4.771304]
[1763350565013,0.98102259,3178.4,3177.6,4.3658]
[1763350565436,0.29362938,3178.3,3177.6,4.3658]
[1763350566137,0.98102259,3178.4,3175.8,1.10666624]
[1763350566138,0.4998,3177.1,3175.8,1.10666624]
[1763350566438,1.82686865,3177.0,3175.4,0.1517]
[1763350566641,1.82686865,3177.0,3175.5,0.4848]
[1763350566642,0.58980921,3176.9,3175.5,0.4848]
[1763350566851,0.29416865,3176.8,3176.3,5.20334151]
[1763350567006,0.29416865,3176.7,3176.3,5.20334151]
[1763350567206,0.29416865,3176.6,3176.4,0.125]
[1763350567413,0.29416865,3176.5,3176.4,0.125]
[1763350567830,0.29416865,3176.5,3176.4,0.5763]
[1763350569756,1.12953699,3177.6,3176.4,0.5763]
[1763350569757,0.84723424,3177.9,3176.5,0.405504]
[1763350570053,1.69430548,3178.3,3177.1,0.405504]
[1763350570054,0.29459746,3177.8,3177.1,0.405504]
[1763350570249,0.29459746,3177.7,3177.1,0.405504]
[1763350570436,0.29459746,3177.6,3177.2,0.1517]
[1763350570642,0.49412259,3178.4,3177.2,0.1517]
[1763350570643,0.29459746,3177.5,3177.2,0.1517]
[1763350570814,0.29459746,3177.4,3177.2,0.1517]
[1763350571150,0.1922,3177.9,3177.2,0.6365]
[1763350571312,0.29459069,3177.8,3177.3,0.4513]
[1763350571508,0.29459069,3177.7,3177.3,0.4513]
[1763350571720,0.29459069,3177.6,3177.3,0.4513]
[1763350571921,0.29459069,3177.5,3177.3,0.4513]
[1763350572154,0.29459069,3177.4,3177.3,0.4513]
[1763350572634,0.29459069,3177.4,3177.2,0.1517]
[1763350572977,0.29459069,3177.3,3177.2,0.1517]
[1763350573345,0.4869,3178.3,3177.2,1.0878]
[1763350573557,0.49421498,3177.5,3177.2,1.0878]
[1763350573770,0.29462067,3177.4,3177.2,1.0878]
[1763350574070,0.4869,3178.3,3177.2,0.603]
[1763350574227,0.29463612,3178.2,3177.3,0.9361]
[1763350574564,0.29463612,3178.1,3177.4,0.405504]
[1763350574761,0.29463612,3178.0,3177.5,5.20334151]
[1763350575070,0.29463612,3177.9,3177.5,5.20334151]
[1763350575276,0.29463612,3177.8,3177.6,0.4848]
[1763350575483,0.002,3178.5,3177.6,0.4848]
[1763350575774,0.2945566,3178.4,3177.7,0.4513]
[1763350575927,0.2945566,3178.3,3177.7,0.4513]
[1763350576127,0.2945566,3178.2,3177.7,0.4513]
[1763350576327,0.2945566,3178.1,3177.5,5.20334151]
[1763350576571,0.2945566,3178.0,3177.5,5.20334151]
[1763350576796,0.2945566,3177.9,3177.5,5.20334151]
[1763350577057,0.002,3178.5,3177.5,5.20334151]
[1763350577261,0.29451402,3178.4,3177.8,0.4555]
[1763350577429,0.002,3178.5,3177.9,0.405504]
[1763350577430,0.29451402,3178.3,3177.9,0.405504]
[1763350577628,0.29451402,3178.2,3177.9,6.22364551]
[1763350577844,0.29451402,3178.1,3177.9,5.74384551]
[1763350578056,0.002,3178.5,3177.6,0.885304]
[1763350578258,0.29446898,3178.4,3178.0,0.4555]
[1763350578454,0.002,3178.5,3178.0,0.4555]
[1763350578455,0.29446898,3178.3,3178.0,0.4555]
[1763350578657,0.29446898,3178.2,3178.0,0.4555]
[1763350578860,0.29446898,3178.1,3178.0,0.4555]
[1763350581109,0.002,3178.5,3178.0,0.4555]
[1763350581294,0.29443202,3178.4,3178.0,0.4555]
[1763350581462,0.29443202,3178.3,3178.0,0.4555]
[1763350581662,0.29443202,3178.2,3178.0,0.4555]
[1763350581862,0.002,3178.5,3178.0,0.4555]
[1763350582095,0.29442766,3178.4,3178.1,0.4733]
[1763350582297,0.29442766,3178.3,3178.1,0.4733]
[1763350582599,0.29442766,3178.2,3178.1,0.4733]
[1763350582896,0.29442766,3178.2,3177.2,0.1517]
[1763350582897,0.75832766,3178.2,3177.2,0.1517]
[1763350583087,0.002,3178.5,3177.2,0.6305]
[1763350583088,0.79332766,3178.1,3177.2,0.6305]
[1763350583277,0.29442766,3178.0,3177.2,0.6305]
[1763350583594,0.29448026,3177.9,3177.3,1.1337408]
[1763350583759,0.1845,3177.9,3177.3,1.1337408]
[1763350584295,0.1845,3177.9,3176.9,0.001]
[1763350584296,0.4639,3177.4,3176.9,0.001]
[1763350584594,0.9628,3177.4,3176.9,0.001]
[1763350584985,0.4989,3177.3,3176.9,0.001]
[1763350585572,0.4639,3177.0,3176.9,0.001]
[1763350587989,0.4989,3177.5,3176.9,0.4743]
[1763350589794,0.4989,3177.5,3176.9,0.001]
[1763350590625,0.49418279,3177.4,3176.9,0.001]
[1763350591012,0.4639,3177.0,3176.9,0.001]
[1763350592615,0.49418279,3177.4,3176.9,0.4743]
[1763350592822,0.4639,3177.0,3176.9,0.001]
[1763350593499,0.4989,3177.3,3176.9,0.001]
[1763350593701,0.49418279,3177.4,3176.9,0.001]
[1763350593904,0.99308279,3177.4,3176.9,0.001]
[1763350594624,0.4989,3177.3,3176.9,0.001]
[1763350594826,0.4639,3177.0,3176.9,0.001]
[1763350595203,0.9628,3177.0,3176.9,0.001]
[1763350600941,1.4570593,3177.0,3176.9,0.001]
[1763350601110,0.9628,3177.0,3176.9,0.001]
[1763350601439,0.9648,3177.0,3176.9,0.001]
[1763350604151,1.45909361,3177.0,3176.9,0.001]
[1763350606556,0.9648,3177.0,3176.9,0.001]
[1763350606903,0.002,3177.0,3176.9,0.4743]
[1763350607109,0.002,3177.0,3176.9,0.001]
[1763350607256,0.4659,3177.0,3176.9,0.001]